bitfinex-derivatives/quotes_BTCF0:USTF0_20250718
["timestamp","ask_amount","ask_price","bid_price","bid_amount"]
[1752867367809,1.57430099,117730.0,117720.0,0.6351503]
[1752867368904,1.57430099,117730.0,117720.0,0.804942]
[1752867369105,1.57430099,117730.0,117720.0,0.61648]
[1752867372016,1.57430099,117730.0,117720.0,0.61848]
[1752867372717,1.13801073,117730.0,117720.0,0.61748]
[1752867372910,1.57430099,117730.0,117720.0,0.62128]
[1752867373517,1.57430099,117730.0,117720.0,0.6218]
[1752867373718,1.58276912,117730.0,117720.0,0.6218]
[1752867374618,1.14647886,117730.0,117720.0,0.6218]
[1752867374819,1.58276912,117730.0,117720.0,0.6218]
[1752867375218,1.57430099,117730.0,117720.0,0.7915915]
[1752867375418,1.57430099,117730.0,117720.0,0.6218]
[1752867376720,1.57430099,117730.0,117720.0,0.7915914]
[1752867376922,0.77721073,117730.0,117720.0,1.1523914]
[1752867377227,1.21350099,117730.0,117720.0,1.1523914]
[1752867377926,1.21350099,117730.0,117720.0,0.7912314]
[1752867378321,1.21350099,117730.0,117720.0,0.7907914]
[1752867378722,1.21350099,117730.0,117720.0,1.1515914]
[1752867379232,0.77721073,117730.0,117720.0,1.1515914]
[1752867379428,1.21350099,117730.0,117720.0,1.1515914]
[1752867380230,0.77721073,117730.0,117720.0,1.1515914]
[1752867380527,0.83832588,117730.0,117720.0,1.1515914]
[1752867380727,0.83832588,117730.0,117720.0,0.7907914]
[1752867380928,0.83832588,117730.0,117720.0,1.1515914]
[1752867381326,0.83832588,117730.0,117720.0,0.7907914]
[1752867381521,0.77721073,117730.0,117720.0,0.7907914]
[1752867381724,1.21350099,117730.0,117720.0,1.1515914]
[1752867382434,1.21350099,117730.0,117720.0,0.7907914]
[1752867382732,1.21350099,117730.0,117720.0,1.1515914]
[1752867382931,0.77721073,117730.0,117720.0,1.58788166]
[1752867383832,0.69929073,117730.0,117720.0,1.58788166]
[1752867385137,0.69929073,117730.0,117720.0,1.22708166]
[1752867385338,0.69929073,117730.0,117720.0,1.58788166]
[1752867385531,0.69929073,117730.0,117720.0,1.22708166]
[1752867386037,0.76040588,117730.0,117720.0,1.22708166]
[1752867386237,0.69929073,117730.0,117720.0,1.22708166]
[1752867386439,0.77721073,117730.0,117720.0,1.22708166]
[1752867386738,0.77721073,117730.0,117720.0,0.7907914]
[1752867386939,0.77721073,117730.0,117720.0,1.22708166]
[1752867388636,0.77721073,117730.0,117720.0,1.1515914]
[1752867388938,0.77721073,117730.0,117720.0,0.7907914]
[1752867389140,1.21350099,117730.0,117720.0,0.1707914]
[1752867389341,1.21350099,117730.0,117720.0,0.7894714]
[1752867390143,1.21350099,117730.0,117720.0,0.001]
[1752867390443,1.57430099,117730.0,117720.0,0.61972]
[1752867391744,1.57430099,117730.0,117720.0,0.7895114]
[1752867391938,1.13801073,117730.0,117720.0,0.7895114]
[1752867392439,1.57430099,117730.0,117720.0,0.7895114]
[1752867392641,1.60430099,117730.0,117720.0,0.7895114]
[1752867394542,1.60430099,117730.0,117720.0,0.61972]
[1752867397643,1.60430099,117730.0,117720.0,0.7895116]
[1752867397944,1.60430099,117730.0,117720.0,0.61972]
[1752867399044,1.16801073,117730.0,117720.0,0.7895115]
[1752867399339,1.60430099,117730.0,117720.0,0.61972]
[1752867400544,1.60430099,117730.0,117720.0,0.7895115]
[1752867401245,1.60430099,117730.0,117720.0,0.61972]
[1752867402342,1.60430099,117730.0,117720.0,0.61824]
[1752867402748,1.16801073,117730.0,117720.0,0.61824]
[1752867403042,1.60430099,117730.0,117720.0,0.001]
[1752867403541,1.16801073,117730.0,117720.0,0.61956]
[1752867403746,1.60430099,117730.0,117720.0,0.61956]
[1752867406945,1.60430099,117730.0,117720.0,0.001]
[1752867407250,1.60430099,117730.0,117720.0,0.62016]
[1752867408849,1.60430099,117730.0,117720.0,0.001]
[1752867409051,1.60430099,117730.0,117720.0,0.62016]
[1752867416056,1.66541614,117730.0,117720.0,0.62016]
[1752867416351,1.66541614,117730.0,117720.0,0.001]
[1752867416551,1.66541614,117730.0,117700.0,0.656]
[1752867416756,0.75355026,117710.0,117700.0,0.9796]
[1752867417056,1.23408099,117710.0,117700.0,0.9796]
[1752867417852,1.23408099,117710.0,117700.0,1.1524203]
[1752867418156,1.23408099,117710.0,117700.0,1.1534203]
[1752867418552,1.23408099,117710.0,117700.0,0.6198]
[1752867418748,1.23408099,117710.0,117700.0,0.6218]
[1752867419554,1.24281901,117710.0,117700.0,0.6218]
[1752867420248,1.60361901,117710.0,117700.0,0.621]
[1752867420555,1.67975196,117710.0,117700.0,0.62092]
[1752867421148,1.2434617,117710.0,117700.0,0.003]
[1752867421352,1.72220486,117710.0,117690.0,0.61784]
[1752867421552,1.1722237,117700.0,117690.0,0.61784]
[1752867421754,1.67275443,117700.0,117690.0,0.61784]
[1752867422356,1.67269714,117700.0,117690.0,0.61784]
[1752867422556,1.23640688,117700.0,117690.0,0.7876747]
[1752867422754,1.61163099,117700.0,117690.0,0.61945]
[1752867422960,1.61163099,117700.0,117690.0,0.62145]
[1752867423460,1.61163099,117700.0,117690.0,0.7942847]
[1752867424161,1.17534073,117700.0,117690.0,0.7942847]
[1752867424362,1.61163099,117700.0,117690.0,0.7942847]
[1752867424565,1.61363099,117700.0,117690.0,0.7922847]
[1752867424755,1.61363099,117700.0,117690.0,0.62245]
[1752867425363,1.61363099,117700.0,117690.0,0.7892848]
[1752867425563,1.61363099,117700.0,117690.0,0.7912848]
[1752867426261,1.17734073,117700.0,117690.0,1.22657506]
[1752867426466,1.17934073,117700.0,117690.0,1.22657506]
[1752867426658,1.17934073,117700.0,117690.0,0.7902848]
[1752867426859,1.17934073,117700.0,117690.0,0.7892848]
[1752867427766,1.61563099,117700.0,117690.0,0.7892848]
[1752867428269,1.61563099,117700.0,117690.0,0.61945]
[1752867428766,1.61563099,117700.0,117690.0,0.7876747]
[1752867428962,1.17934073,117700.0,117690.0,0.7876747]
[1752867429266,1.61563099,117700.0,117690.0,0.7892847]
[1752867432866,1.17934073,117700.0,117690.0,0.7892847]
[1752867433067,1.61563099,117700.0,117690.0,0.7892847]
[1752867433770,1.17934073,117700.0,117690.0,0.7892847]
[1752867434665,1.61563099,117700.0,117690.0,0.7892847]
[1752867437570,1.17934073,117700.0,117690.0,0.7892847]
[1752867437769,1.61563099,117700.0,117690.0,0.7892847]
[1752867439667,1.61563099,117700.0,117690.0,0.61945]
[1752867439971,1.61563099,117700.0,117690.0,0.61784]
[1752867441368,1.61563099,117700.0,117690.0,0.7876747]
[1752867442372,1.61563099,117700.0,117690.0,0.61784]
[1752867442672,1.61563099,117700.0,117690.0,0.7876748]
[1752867442867,1.17934073,117700.0,117690.0,0.7876748]
[1752867443075,1.61563099,117700.0,117690.0,0.7876748]
[1752867444176,1.61563099,117700.0,117680.0,0.9107637]
[1752867444475,0.75030026,117690.0,117680.0,0.9123737]
[1752867444672,1.25083099,117690.0,117680.0,0.8699116]
[1752867444872,1.25083099,117690.0,117680.0,1.4885516]
[1752867445478,1.25083099,117690.0,117680.0,0.8699116]
[1752867445676,1.25183099,117690.0,117680.0,1.4885516]
[1752867446077,0.81554073,117690.0,117680.0,1.4885516]
[1752867449877,0.81554073,117690.0,117680.0,1.1277516]
[1752867450074,0.81554073,117690.0,117680.0,0.8699116]
[1752867450279,0.81554073,117690.0,117680.0,1.1267116]
[1752867450675,0.81554073,117690.0,117680.0,1.4875116]
[1752867450979,0.81554073,117690.0,117680.0,1.1267116]
[1752867451378,0.81554073,117690.0,117680.0,1.4875116]
[1752867451572,0.81554073,117690.0,117680.0,1.1267116]
[1752867452280,0.81554073,117690.0,117680.0,1.4875116]
[1752867454381,0.81554073,117690.0,117680.0,1.1267116]
[1752867454680,0.81554073,117690.0,117680.0,1.4875116]
[1752867454880,0.81554073,117690.0,117680.0,1.4863516]
[1752867455084,1.25183099,117690.0,117680.0,1.4863516]
[1752867456177,1.25183099,117690.0,117680.0,1.1255516]
[1752867456482,1.25183099,117690.0,117680.0,1.4863516]
[1752867458380,0.81554073,117690.0,117680.0,1.4863516]
[1752867460785,0.79501,117690.0,117680.0,1.4863516]
[1752867461986,0.8157914,117690.0,117680.0,1.4863516]
[1752867462186,0.79501,117690.0,117680.0,1.4863516]
[1752867462594,1.25208172,117690.0,117680.0,1.4863516]
[1752867462886,1.23130026,117690.0,117680.0,1.4863516]
[1752867463587,0.79501,117690.0,117680.0,1.4863516]
[1752867464090,0.81579159,117690.0,117680.0,1.4863516]
[1752867465187,1.14341183,117690.0,117680.0,1.81397184]
[1752867467592,1.14341183,117690.0,117680.0,1.19753184]
[1752867467791,1.14341183,117690.0,117680.0,1.81173184]
[1752867470492,0.81579159,117690.0,117680.0,1.81173184]
[1752867470794,1.14341183,117690.0,117680.0,1.81173184]
[1752867473090,0.81579159,117690.0,117680.0,2.14035208]
[1752867474996,1.14341183,117690.0,117680.0,2.14035208]
[1752867475496,0.81579159,117690.0,117680.0,2.14035208]
[1752867477604,0.81579159,117690.0,117680.0,1.4851116]
[1752867477807,0.81579159,117690.0,117680.0,2.14035208]
[1752867479013,1.1436304,117690.0,117680.0,1.4851116]
[1752867479207,1.1436304,117690.0,117680.0,1.81273184]
[1752867479709,1.1436304,117690.0,117680.0,1.81173184]
[1752867480010,0.81601016,117690.0,117680.0,1.81173184]
[1752867480206,0.81601016,117690.0,117680.0,1.4415791]
[1752867480412,0.81601016,117690.0,117680.0,1.76919934]
[1752867480711,1.1436304,117690.0,117680.0,1.76919934]
[1752867481315,1.1436304,117690.0,117680.0,1.15507934]
[1752867481517,1.1436304,117690.0,117680.0,1.76919934]
[1752867482315,0.81601016,117690.0,117680.0,1.76919934]
[1752867482517,1.1436304,117690.0,117680.0,1.76919934]
[1752867484917,1.1436304,117690.0,117680.0,2.09681958]
[1752867485309,1.1436304,117690.0,117680.0,1.76919934]
[1752867486720,1.1436304,117690.0,117680.0,2.09681958]
[1752867487314,1.1436304,117690.0,117680.0,1.4415791]
[1752867487619,1.1436304,117690.0,117680.0,1.76919934]
[1752867492224,1.1436304,117690.0,117680.0,1.4415791]
[1752867492726,1.1436304,117690.0,117680.0,1.76919934]
[1752867493722,0.81601016,117690.0,117680.0,1.76919934]
[1752867494027,1.1436304,117690.0,117680.0,1.76919934]
[1752867496228,1.1436304,117690.0,117680.0,1.1463791]
[1752867496520,1.1436304,117690.0,117680.0,1.47399934]
[1752867496721,1.1436304,117690.0,117680.0,1.1463791]
[1752867497025,1.1436304,117690.0,117680.0,1.47379934]
[1752867497925,1.1456304,117690.0,117680.0,1.47379934]
[1752867499025,1.1486304,117690.0,117680.0,1.47379934]
[1752867502627,1.1486304,117690.0,117680.0,1.1461791]
[1752867502827,1.1486304,117690.0,117680.0,1.47379934]
[1752867503329,1.1486304,117690.0,117680.0,0.85987934]
[1752867503528,1.1486304,117690.0,117680.0,1.47371934]
[1752867505223,1.1486304,117690.0,117680.0,1.76891934]
[1752867506030,0.82101016,117690.0,117680.0,1.76891934]
[1752867506330,1.1486304,117690.0,117680.0,1.76891934]
[1752867510131,1.5094304,117690.0,117680.0,0.79427934]
[1752867510332,1.20981385,117690.0,117680.0,1.40807934]
[1752867511532,1.1486304,117690.0,117680.0,1.40807934]
[1752867511935,1.1486304,117690.0,117680.0,1.40803934]
[1752867512437,1.1486304,117690.0,117680.0,0.79427934]
[1752867512735,1.1486304,117690.0,117680.0,1.40803934]
[1752867513034,1.1486304,117690.0,117680.0,0.79427934]
[1752867513230,1.1486304,117690.0,117680.0,1.0804191]
[1752867513431,1.1486304,117690.0,117680.0,0.4666591]
[1752867513737,1.1486304,117690.0,117680.0,1.0788091]
[1752867514835,0.82101016,117690.0,117680.0,1.0788091]
[1752867515027,1.1486304,117690.0,117680.0,1.0788091]
[1752867515938,1.14871863,117690.0,117680.0,1.0788091]
[1752867516637,1.14871863,117690.0,117680.0,0.7836091]
[1752867517836,1.14871863,117690.0,117680.0,0.7835691]
[1752867518344,1.14871863,117690.0,117680.0,0.1698491]
[1752867518540,1.14871863,117690.0,117680.0,0.7835691]
[1752867519343,0.82109839,117690.0,117680.0,0.7835691]
[1752867519643,1.20990208,117690.0,117680.0,0.7835691]
[1752867520037,1.20990208,117690.0,117680.0,1.11118934]
[1752867520235,1.20990208,117690.0,117680.0,0.7835691]
[1752867522841,1.20990208,117690.0,117680.0,0.1698491]
[1752867523042,1.20990208,117690.0,117670.0,0.81581324]
[1752867523043,0.31005,117680.0,117670.0,0.3608]
[1752867523242,0.18882,117670.0,117660.0,1.7484539]
[1752867523447,1.11875863,117670.0,117660.0,1.3876539]
[1752867523642,1.11875863,117670.0,117660.0,1.17532]
[1752867524143,1.12745125,117670.0,117660.0,1.9588778]
[1752867524647,1.81587149,117670.0,117660.0,1.789]
[1752867525141,1.87705494,117670.0,117660.0,1.789]
[1752867525347,1.61850539,117670.0,117660.0,1.789]
[1752867526049,1.62150539,117670.0,117660.0,1.789]
[1752867526741,1.56032194,117670.0,117660.0,1.789]
[1752867527646,1.62139669,117670.0,117660.0,1.789]
[1752867528750,1.62139669,117670.0,117660.0,1.9588778]
[1752867528751,1.61270407,117670.0,117660.0,1.9588778]
[1752867529546,1.55162932,117670.0,117660.0,1.9588778]
[1752867531042,1.55162932,117670.0,117660.0,1.789]
[1752867532052,1.56001969,117670.0,117660.0,1.789]
[1752867532952,1.88763993,117670.0,117660.0,1.789]
[1752867536855,1.88757909,117670.0,117660.0,1.789]
[1752867537349,1.88757909,117670.0,117630.0,0.3608]
[1752867537350,2.38757909,117670.0,117630.0,0.3608]
[1752867537555,0.61516024,117640.0,117630.0,0.58410184]
[1752867537758,0.92869779,117640.0,117630.0,1.19774184]
[1752867537957,0.92869779,117640.0,117630.0,1.19874184]
[1752867538255,0.60107755,117640.0,117630.0,1.19874184]
[1752867538457,0.60107755,117640.0,117630.0,0.94790184]
[1752867538653,0.60107755,117640.0,117630.0,1.56154184]
[1752867538858,0.60107755,117640.0,117630.0,1.56354184]
[1752867539057,0.60107755,117640.0,117630.0,1.67303631]
[1752867539462,0.60107755,117640.0,117630.0,1.67103631]
[1752867539463,0.6183854,117640.0,117630.0,1.67103631]
[1752867539762,0.6193854,117640.0,117630.0,1.67940505]
[1752867540158,0.6193854,117640.0,117630.0,1.06576505]
[1752867540464,0.76207755,117640.0,117630.0,1.06576505]
[1752867540664,0.76207755,117640.0,117630.0,1.68036505]
[1752867540858,0.64084755,117640.0,117630.0,1.68036505]
[1752867541358,0.64084755,117640.0,117630.0,1.67736505]
[1752867541563,0.64084755,117640.0,117630.0,2.66449576]
[1752867541564,0.45202755,117640.0,117630.0,2.66449576]
[1752867541757,0.20562245,117660.0,117650.0,0.1698922]
[1752867541954,0.36562245,117660.0,117650.0,2.27224691]
[1752867542160,0.39,117660.0,117650.0,2.27224691]
[1752867542361,0.23526069,117670.0,117660.0,0.1698777]
[1752867542564,0.53907069,117670.0,117660.0,2.14343241]
[1752867542761,0.18907069,117670.0,117660.0,2.14343241]
[1752867543362,0.19907069,117670.0,117660.0,2.14343241]
[1752867543764,0.36526069,117670.0,117660.0,2.14343241]
[1752867544370,0.36826069,117670.0,117660.0,2.14343241]
[1752867545161,0.36926069,117670.0,117660.0,2.14343241]
[1752867545567,0.72926069,117670.0,117660.0,2.14343241]
[1752867545866,0.72926069,117670.0,117660.0,2.0563177]
[1752867546066,0.72926069,117670.0,117660.0,2.51343241]
[1752867546267,0.56307069,117670.0,117660.0,2.51343241]
[1752867546971,0.56307069,117670.0,117660.0,2.14343241]
[1752867547271,0.72926069,117670.0,117660.0,3.11699241]
[1752867547771,0.72926069,117670.0,117660.0,2.50343241]
[1752867547970,0.72926069,117670.0,117660.0,2.75695241]
[1752867548171,0.75176069,117670.0,117660.0,2.75695241]
[1752867548667,0.75176069,117670.0,117660.0,3.10695241]
[1752867548868,0.72926069,117670.0,117660.0,2.75695241]
[1752867549673,0.72926069,117670.0,117660.0,2.75704848]
[1752867550068,0.72926069,117670.0,117660.0,3.08704848]
[1752867550269,0.72926069,117670.0,117660.0,3.09704848]
[1752867550575,0.72926069,117670.0,117660.0,3.08704848]
[1752867551072,0.72926069,117670.0,117660.0,2.75704848]
[1752867552284,0.72926069,117670.0,117660.0,3.12704848]
[1752867552778,0.72926069,117670.0,117660.0,2.75704848]
[1752867553171,0.72926069,117670.0,117660.0,3.06704848]
[1752867553371,0.66926069,117670.0,117660.0,3.06704848]
[1752867553878,0.69021222,117670.0,117660.0,3.06704848]
[1752867556377,0.69021222,117670.0,117660.0,2.75704848]
[1752867556677,0.69021222,117670.0,117660.0,3.08704848]
[1752867556876,0.69021222,117670.0,117660.0,2.31993377]
[1752867557072,0.69021222,117670.0,117660.0,3.07704848]
[1752867558977,0.38021222,117670.0,117660.0,3.07704848]
[1752867559177,0.71021222,117670.0,117660.0,3.07704848]
[1752867559875,0.73271222,117670.0,117660.0,3.07704848]
[1752867560077,0.73271222,117670.0,117660.0,2.31993377]
[1752867560276,0.73271222,117670.0,117660.0,2.14352848]
[1752867560576,0.73271222,117670.0,117660.0,2.75688848]
[1752867560979,0.73271222,117670.0,117660.0,2.31977377]
[1752867561179,0.73271222,117670.0,117660.0,2.75688848]
[1752867561674,0.73271222,117670.0,117660.0,3.07688848]
[1752867562371,0.73271222,117670.0,117660.0,2.65977377]
[1752867562569,0.73271222,117670.0,117660.0,2.31973377]
[1752867562875,0.76361222,117670.0,117660.0,2.14352848]
[1752867563075,0.85067222,117670.0,117660.0,2.75684848]
[1752867563475,0.85067222,117670.0,117660.0,2.14352848]
[1752867563678,0.85067222,117670.0,117660.0,2.31973377]
[1752867563977,0.85067222,117670.0,117660.0,2.75684848]
[1752867564278,0.85067222,117670.0,117660.0,2.31973377]
[1752867564479,0.85067222,117670.0,117660.0,2.75684848]
[1752867566874,0.85067222,117670.0,117660.0,2.14352848]
[1752867567080,0.85067222,117670.0,117660.0,2.75680848]
[1752867567380,0.85067222,117670.0,117660.0,2.31969377]
[1752867567678,0.85067222,117670.0,117660.0,1.14405377]
[1752867568979,0.85067222,117670.0,117660.0,1.58116848]
[1752867570268,0.85067222,117670.0,117660.0,0.43721078]
[1752867570469,1.64858693,117670.0,117660.0,9.607e-05]
[1752867570977,1.64858693,117670.0,117660.0,0.61337607]
[1752867571178,1.64858693,117670.0,117660.0,9.607e-05]
[1752867571479,1.64858693,117670.0,117660.0,0.61337607]
[1752867571680,1.64858693,117670.0,117660.0,9.607e-05]
[1752867571874,1.64858693,117670.0,117660.0,0.61337607]
[1752867572073,1.64858693,117670.0,117660.0,0.78325377]
[1752867572270,1.28778693,117670.0,117660.0,0.78325377]
[1752867572776,0.85067222,117670.0,117660.0,0.78325377]
[1752867572981,1.28778693,117670.0,117660.0,0.78325377]
[1752867574181,0.85067222,117670.0,117660.0,0.61337607]
[1752867574382,1.28778693,117670.0,117660.0,0.61337607]
[1752867574581,1.64858693,117670.0,117660.0,0.61337607]
[1752867575082,1.64858693,117670.0,117660.0,0.78325377]
[1752867575283,1.64858693,117670.0,117660.0,0.61337607]
[1752867576078,1.21147222,117670.0,117660.0,0.61337607]
[1752867576382,1.21147222,117670.0,117660.0,0.78325377]
[1752867576584,1.64858693,117670.0,117660.0,0.16997377]
[1752867577082,1.28778693,117670.0,117660.0,0.78441377]
[1752867577784,0.85067222,117670.0,117660.0,0.78457377]
[1752867577978,1.28778693,117670.0,117660.0,0.78445377]
[1752867578780,0.85067222,117670.0,117660.0,0.78445377]
[1752867578986,1.28778693,117670.0,117660.0,0.78445377]
[1752867579581,0.85067222,117670.0,117660.0,0.60708848]
[1752867579884,0.85067222,117670.0,117660.0,1.58296848]
[1752867580085,0.41271222,117670.0,117660.0,1.58296848]
[1752867580487,0.44358222,117670.0,117660.0,1.58296848]
[1752867580682,0.88772222,117670.0,117660.0,1.58296848]
[1752867581583,0.88772222,117670.0,117660.0,1.22216848]
[1752867581881,0.88772222,117670.0,117660.0,1.58296848]
[1752867584790,0.80509222,117670.0,117660.0,1.58296848]
[1752867584991,0.88772222,117670.0,117660.0,1.58296848]
[1752867589896,0.88773512,117670.0,117660.0,1.58296848]
[1752867590694,0.88773512,117670.0,117660.0,1.14585377]
[1752867591396,0.88773512,117670.0,117660.0,1.58296848]
[1752867592295,0.88773512,117670.0,117660.0,1.22292848]
[1752867593989,0.88773512,117670.0,117660.0,0.60708848]
[1752867594191,0.88773512,117670.0,117660.0,1.22420848]
[1752867594396,0.88773512,117670.0,117660.0,1.22356848]
[1752867594998,0.88773512,117670.0,117660.0,1.58436848]
[1752867599797,0.88773512,117670.0,117660.0,1.14725377]
[1752867600000,0.88773512,117670.0,117660.0,0.53077377]
[1752867600201,0.88773512,117670.0,117660.0,0.60708858]
[1752867600402,1.32484983,117670.0,117660.0,0.16997387]
[1752867600603,1.32484983,117670.0,117660.0,0.78609387]
[1752867602299,1.32484983,117670.0,117660.0,0.61665607]
[1752867602603,1.74672458,117670.0,117660.0,0.61665607]
[1752867602804,1.74672458,117670.0,117660.0,9.607e-05]
[1752867603103,1.74672458,117670.0,117660.0,0.61733607]
[1752867606696,1.74672458,117670.0,117660.0,9.607e-05]
[1752867606999,1.91670058,117670.0,117660.0,0.61699313]
[1752867607706,1.85562583,117670.0,117660.0,0.61699313]
[1752867608508,1.91674868,117670.0,117660.0,0.61699313]
[1752867608809,1.74677268,117670.0,117660.0,0.61699313]
[1752867609307,1.68564983,117670.0,117660.0,0.61699313]
[1752867609809,1.74677268,117670.0,117660.0,0.61699313]
[1752867610208,1.68564983,117670.0,117660.0,0.61699313]
[1752867610805,0.12172,117650.0,117630.0,0.0849584]
[1752867611109,0.74982471,117640.0,117630.0,0.169921]
[1752867611309,1.25078914,117640.0,117630.0,0.785801]
[1752867611608,0.81367443,117640.0,117630.0,0.785851]
[1752867612105,0.81367443,117640.0,117630.0,0.789851]
[1752867613411,1.25078914,117640.0,117630.0,0.789851]
[1752867613609,1.25078914,117640.0,117630.0,0.787851]
[1752867614509,1.25078914,117640.0,117630.0,0.171971]
[1752867614711,1.25078914,117640.0,117630.0,0.61728]
[1752867615004,0.88078914,117640.0,117630.0,0.002]
[1752867615305,1.20078914,117640.0,117630.0,0.61748]
[1752867615701,0.93358093,117640.0,117630.0,0.61748]
[1752867615902,1.20078914,117640.0,117630.0,0.787401]
[1752867616405,1.37069564,117640.0,117630.0,0.61748]
[1752867616601,1.10069564,117640.0,117630.0,0.61748]
[1752867617412,0.93078914,117640.0,117630.0,0.787401]
[1752867617611,1.26078914,117640.0,117630.0,0.787401]
[1752867617911,1.26078914,117640.0,117630.0,0.787451]
[1752867618405,1.43069574,117640.0,117630.0,0.61753]
[1752867618610,1.43169574,117640.0,117630.0,0.61553]
[1752867619010,1.43169574,117640.0,117630.0,0.785451]
[1752867619211,1.26178914,117640.0,117630.0,0.785451]
[1752867619610,1.43169574,117640.0,117630.0,0.61553]
[1752867619910,1.26178914,117640.0,117630.0,0.785451]
[1752867620114,1.43169574,117640.0,117630.0,0.61553]
[1752867620411,1.43169574,117640.0,117630.0,0.61548]
[1752867621312,1.47417274,117640.0,117620.0,0.5732049]
[1752867621515,0.31271,117630.0,117620.0,0.6157385]
[1752867621810,0.82367443,117630.0,117620.0,1.2311785]
[1752867622612,0.82367443,117630.0,117620.0,1.2321785]
[1752867623107,0.82367443,117630.0,117620.0,1.66929321]
[1752867624211,1.43071014,117630.0,117620.0,0.3618]
[1752867624414,1.18447443,117630.0,117620.0,0.7867755]
[1752867624613,1.26078914,117630.0,117620.0,0.7867755]
[1752867625415,1.26078914,117630.0,117620.0,0.1709355]
[1752867625616,1.26078914,117630.0,117620.0,0.7868955]
[1752867626218,1.62158914,117630.0,117620.0,0.61696]
[1752867626412,1.62158914,117630.0,117620.0,0.001]
[1752867626716,1.62158914,117630.0,117620.0,0.6172]
[1752867627112,1.62158914,117630.0,117620.0,0.001]
[1752867627318,1.62158914,117630.0,117620.0,0.61792]
[1752867629017,1.63883674,117630.0,117620.0,0.001]
[1752867629217,1.44784674,117630.0,117600.0,0.5732436]
[1752867632024,0.31215,117560.0,117550.0,1.7491781]
[1752867632217,1.22926471,117560.0,117550.0,2.4104072]
[1752867632414,0.81307222,117560.0,117550.0,2.0496072]
[1752867633019,0.81307222,117560.0,117550.0,2.84752191]
[1752867633325,0.68839222,117560.0,117550.0,2.22880191]
[1752867633526,0.66506222,117560.0,117550.0,1.05496191]
[1752867633722,0.66506222,117560.0,117550.0,1.67488191]
[1752867633920,0.16414,117570.0,117560.0,0.1700722]
[1752867634119,0.19,117570.0,117560.0,1.40510162]
[1752867634326,0.07,117570.0,117560.0,1.75510162]
[1752867634622,0.07,117570.0,117560.0,1.74379537]
[1752867635124,0.07,117570.0,117560.0,1.30668066]
[1752867635330,0.07,117570.0,117560.0,1.30868066]
[1752867635925,0.50215,117570.0,117560.0,0.54156595]
[1752867636226,0.50215,117570.0,117560.0,1.60056066]
[1752867636836,0.95676737,117570.0,117560.0,0.1740722]
[1752867637029,0.95676737,117570.0,117560.0,0.7938722]
[1752867637230,1.73757517,117570.0,117560.0,0.7938722]
[1752867637430,1.73757517,117570.0,117560.0,0.1740722]
[1752867637731,1.13045266,117570.0,117560.0,0.7960622]
[1752867637931,1.20676737,117570.0,117560.0,0.7960622]
[1752867638131,1.56756737,117570.0,117560.0,0.004]
[1752867638333,1.56756737,117570.0,117560.0,0.7959822]
[1752867639633,1.56756737,117570.0,117560.0,0.7969822]
[1752867640332,1.56756737,117570.0,117560.0,0.7971022]
[1752867641737,1.13045266,117570.0,117560.0,0.7971022]
[1752867641933,1.56756737,117570.0,117560.0,0.7971022]
[1752867644128,1.13045266,117570.0,117560.0,0.7971022]
[1752867644333,1.56756737,117570.0,117560.0,0.7971022]
[1752867645233,0.76965266,117570.0,117560.0,0.7971022]
[1752867645438,1.20676737,117570.0,117560.0,0.7971022]
[1752867645633,1.20676737,117570.0,117560.0,0.7971522]
[1752867646038,1.22754503,117570.0,117560.0,0.7971522]
[1752867646738,0.79043032,117570.0,117560.0,0.7971522]
[1752867646938,0.79043032,117570.0,117560.0,1.59506691]
[1752867647141,0.79043032,117570.0,117560.0,1.1579522]
[1752867647341,0.79043032,117570.0,117560.0,1.59506691]
[1752867647739,0.71091032,117570.0,117560.0,1.59506691]
[1752867648241,0.71091032,117570.0,117560.0,1.1579522]
[1752867648441,0.79043032,117570.0,117560.0,1.1579522]
[1752867649639,0.79043032,117570.0,117560.0,0.5348722]
[1752867649840,0.79043032,117570.0,117560.0,1.1573122]
[1752867650243,0.77292766,117570.0,117560.0,1.1573122]
[1752867650438,0.77292766,117570.0,117560.0,0.5348722]
[1752867650738,0.79017032,117570.0,117560.0,0.1740222]
[1752867650944,0.79017032,117570.0,117560.0,0.7967422]
[1752867651137,1.22728503,117570.0,117560.0,0.7967422]
[1752867651343,0.79017032,117570.0,117560.0,0.7967422]
[1752867651543,1.22728503,117570.0,117560.0,0.7967922]
[1752867652135,0.79017032,117570.0,117560.0,0.7969522]
[1752867652340,1.22728503,117570.0,117560.0,0.7969522]
[1752867652533,0.79017032,117570.0,117560.0,0.7969522]
[1752867652842,1.22728503,117570.0,117560.0,0.7969522]
[1752867654744,1.22728503,117570.0,117560.0,0.7969022]
[1752867656443,1.28840788,117570.0,117560.0,0.7969022]
[1752867656844,0.85129317,117570.0,117560.0,0.7969022]
[1752867657045,1.22728503,117570.0,117560.0,0.7969022]
[1752867657246,0.79017032,117570.0,117560.0,0.7969022]
[1752867657445,1.22728503,117570.0,117560.0,0.7969022]
[1752867658247,1.28840788,117570.0,117560.0,0.7969022]
[1752867660148,1.28840788,117570.0,117560.0,0.62688]
[1752867660149,1.64920788,117570.0,117560.0,0.62688]
[1752867660349,1.58808503,117570.0,117560.0,0.7929822]
[1752867660551,1.22710327,117570.0,117560.0,0.0950222]
[1752867660850,0.81278,117560.0,117550.0,0.2975611]
[1752867661149,1.31184471,117560.0,117550.0,0.9208011]
[1752867661349,1.31184471,117560.0,117550.0,0.8782923]
[1752867661545,0.87473,117560.0,117550.0,0.8782923]
[1752867661746,0.87383,117560.0,117550.0,1.4278223]
[1752867662049,0.87383,117560.0,117550.0,1.5228423]
[1752867662447,0.87383,117560.0,117550.0,1.96195701]
[1752867662748,0.87383,117560.0,117550.0,1.5248423]
[1752867662952,0.87383,117560.0,117550.0,1.96195701]
[1752867663145,0.81265766,117560.0,117550.0,1.5248423]
[1752867663342,1.24977237,117560.0,117550.0,1.0462323]
[1752867663948,1.31094471,117560.0,117550.0,1.0462323]
[1752867664452,0.87383,117560.0,117550.0,1.0462323]
[1752867664651,1.31094471,117560.0,117550.0,1.0462323]
[1752867664854,1.24977237,117560.0,117550.0,1.4070323]
[1752867665053,1.24977237,117560.0,117550.0,1.0462323]
[1752867665250,1.24977237,117560.0,117550.0,1.4070323]
[1752867666052,1.24977237,117560.0,117550.0,1.4308223]
[1752867666753,0.81265766,117560.0,117550.0,1.0700223]
[1752867667055,1.24977237,117560.0,117550.0,1.0700223]
[1752867667455,1.24977237,117560.0,117550.0,0.9990123]
[1752867667754,1.24977237,117560.0,117550.0,0.9993323]
[1752867668756,0.81265766,117560.0,117550.0,0.9993323]
[1752867668956,1.24977237,117560.0,117550.0,0.9993323]
[1752867670257,0.81265766,117560.0,117550.0,0.9993323]
[1752867670756,0.87383,117560.0,117550.0,0.9993323]
[1752867671358,0.81265766,117560.0,117550.0,0.9993323]
[1752867672060,0.81265766,117560.0,117550.0,1.0475523]
[1752867672261,0.81265766,117560.0,117550.0,1.4083523]
[1752867672863,0.81265766,117560.0,117550.0,1.1653623]